[Event "*** Titled Tuesday Blitz"]
[Site "Chess.com"]
[Date "2020.04.07"]
[Round "3"]
[White "adricalderon8"]
[Black "chiwii"]
[Result "0-1"]
[WhiteElo "2424"]
[BlackElo "2229"]
[TimeControl "180+1"]
[EndTime "13:30:34 PDT"]
[Termination "chiwii won by resignation"]

1. e4 {[%clk 0:03:00.9]} 1... c5 {[%clk 0:02:58.1]} 2. Nf3 {[%clk 0:03:00.6]}
2... e6 {[%clk 0:02:58.2]} 3. d4 {[%clk 0:02:59.4]} 3... cxd4 {[%clk 0:02:58]}
4. Nxd4 {[%clk 0:03:00.3]} 4... a6 {[%clk 0:02:57.9]} 5. Bd3 {[%clk 0:02:59.9]}
5... Bc5 {[%clk 0:02:57.4]} 6. Nb3 {[%clk 0:02:59.3]} 6... Ba7 {[%clk
0:02:57.5]} 7. Qg4 {[%clk 0:02:59.9]} 7... Nf6 {[%clk 0:02:56.5]} 8. Qxg7 {[%clk
0:02:57.4]} 8... Rg8 {[%clk 0:02:56.6]} 9. Qh6 {[%clk 0:02:58]} 9... Rxg2 {[%clk
0:02:56.6]} 10. Be3 {[%clk 0:02:55.9]} 10... Bxe3 {[%clk 0:02:55.7]} 11. Qxe3
{[%clk 0:02:55.9]} 11... Nc6 {[%clk 0:02:54.5]} 12. Nc3 {[%clk 0:02:55]} 12...
Ne5 {[%clk 0:02:41.8]} 13. h3 {[%clk 0:02:48.7]} 13... d6 {[%clk 0:02:25.6]} 14.
O-O-O {[%clk 0:02:47.7]} 14... Bd7 {[%clk 0:02:25.7]} 15. f4 {[%clk 0:02:46.7]}
15... Nxd3+ {[%clk 0:02:20.8]} 16. Rxd3 {[%clk 0:02:46.8]} 16... Qc7 {[%clk
0:02:19]} 17. Rhd1 {[%clk 0:02:46.2]} 17... Bb5 {[%clk 0:01:58.2]} 18. Rxd6
{[%clk 0:02:42]} 18... Nd7 {[%clk 0:01:52.2]} 19. Qf3 {[%clk 0:02:29.9]} 19...
Rh2 {[%clk 0:01:48.3]} 20. Qg3 {[%clk 0:02:30.1]} 20... Rh1 {[%clk 0:01:22.7]}
21. Nxb5 {[%clk 0:02:23.2]} 21... Rxd1+ {[%clk 0:01:19.8]} 22. Rxd1 {[%clk
0:02:23.2]} 22... axb5 {[%clk 0:01:19.6]} 23. Kb1 {[%clk 0:02:14.9]} 23... Rc8
{[%clk 0:01:13.4]} 24. Qf2 {[%clk 0:02:04.6]} 24... Nf6 {[%clk 0:01:13]} 25. Re1
{[%clk 0:01:47.7]} 25... Qc4 {[%clk 0:01:12.7]} 26. Nd4 {[%clk 0:01:35.9]} 26...
Rd8 {[%clk 0:01:06.4]} 27. c3 {[%clk 0:01:00.9]} 27... Qd3+ {[%clk 0:01:05.6]}
28. Qc2 {[%clk 0:00:58.8]} 28... Qxh3 {[%clk 0:01:05.3]} 29. Nxb5 {[%clk
0:00:56.2]} 29... Qg3 {[%clk 0:01:00.6]} 30. Rf1 {[%clk 0:00:40.7]} 30... Ng4
{[%clk 0:00:55.4]} 31. Nd4 {[%clk 0:00:28.5]} 31... Ne3 {[%clk 0:00:53]} 32.
Qa4+ {[%clk 0:00:28.6]} 32... Kf8 {[%clk 0:00:47.1]} 33. Qb4+ {[%clk 0:00:28.3]}
33... Kg8 {[%clk 0:00:40.3]} 34. Rc1 {[%clk 0:00:24.1]} 34... Qxf4 {[%clk
0:00:34]} 35. Rg1+ {[%clk 0:00:23.5]} 35... Ng4 {[%clk 0:00:31.6]} 36. Qe7
{[%clk 0:00:20.3]} 36... Qxe4+ {[%clk 0:00:31.8]} 37. Ka1 {[%clk 0:00:20]} 37...
Rd5 {[%clk 0:00:29.4]} 38. Qe8+ {[%clk 0:00:08.9]} 38... Kg7 {[%clk 0:00:26.9]}
39. Qe7 {[%clk 0:00:09.8]} 39... h5 {[%clk 0:00:19.8]} 40. Qh4 {[%clk
0:00:08.6]} 40... Qe3 {[%clk 0:00:15.8]} 41. Re1 {[%clk 0:00:08.3]} 41... Qg5
{[%clk 0:00:15.3]} 42. Qg3 {[%clk 0:00:06.1]} 42... Nf6 {[%clk 0:00:14.1]} 43.
Qf2 {[%clk 0:00:04.2]} 43... Ng4 {[%clk 0:00:13.1]} 44. Qc2 {[%clk 0:00:03.7]}
44... Nf6 {[%clk 0:00:12.8]} 45. a4 {[%clk 0:00:02.2]} 45... Qg3 {[%clk
0:00:12.3]} 46. Ne2 {[%clk 0:00:02.3]} 46... Qxe1+ {[%clk 0:00:12.1]} 47. Ka2
{[%clk 0:00:03.2]} 47... Rd2 {[%clk 0:00:11.8]} 0-1

[Event "*** Titled Tuesday Blitz"]
[Site "Chess.com"]
[Date "2020.04.07"]
[Round "3"]
[White "Opening_Prep"]
[Black "Caracternin123"]
[Result "0-1"]
[WhiteElo "2278"]
[BlackElo "2553"]
[TimeControl "180+1"]
[EndTime "13:30:35 PDT"]
[Termination "Caracternin123 won by resignation"]

1. d4 {[%clk 0:03:00.9]} 1... Nf6 {[%clk 0:02:59.1]} 2. c4 {[%clk 0:03:00.4]}
2... c5 {[%clk 0:02:59.3]} 3. Nf3 {[%clk 0:02:59]} 3... cxd4 {[%clk 0:02:59.1]}
4. Nxd4 {[%clk 0:02:59.2]} 4... b6 {[%clk 0:02:59.6]} 5. f3 {[%clk 0:02:57.5]}
5... Bb7 {[%clk 0:02:59.3]} 6. e4 {[%clk 0:02:57.6]} 6... d6 {[%clk 0:02:59.7]}
7. Nc3 {[%clk 0:02:55.5]} 7... e6 {[%clk 0:03:00]} 8. Be2 {[%clk 0:02:55.5]}
8... Be7 {[%clk 0:03:00.3]} 9. O-O {[%clk 0:02:55.9]} 9... Nbd7 {[%clk
0:02:59.4]} 10. Be3 {[%clk 0:02:55.4]} 10... O-O {[%clk 0:02:59.1]} 11. Qd2
{[%clk 0:02:51.6]} 11... a6 {[%clk 0:02:59]} 12. Rfd1 {[%clk 0:02:48.8]} 12...
Qc7 {[%clk 0:02:58.4]} 13. Rac1 {[%clk 0:02:46.5]} 13... Rac8 {[%clk 0:02:56.4]}
14. Kh1 {[%clk 0:02:38]} 14... Rfe8 {[%clk 0:02:54.8]} 15. b3 {[%clk 0:02:27.9]}
15... Qb8 {[%clk 0:02:54.9]} 16. g4 {[%clk 0:02:27.4]} 16... h6 {[%clk
0:02:10.7]} 17. h4 {[%clk 0:01:59.8]} 17... d5 {[%clk 0:01:54.1]} 18. g5 {[%clk
0:01:28.6]} 18... hxg5 {[%clk 0:01:49.6]} 19. hxg5 {[%clk 0:01:28.2]} 19... Nh5
{[%clk 0:01:49.4]} 20. f4 {[%clk 0:01:14.7]} 20... Ng3+ {[%clk 0:01:48.5]} 21.
Kg2 {[%clk 0:01:15.1]} 21... Nxe2 {[%clk 0:01:28.7]} 22. Ndxe2 {[%clk
0:00:58.2]} 22... Rcd8 {[%clk 0:01:08]} 23. Rh1 {[%clk 0:00:46.6]} 23... dxc4
{[%clk 0:01:01.7]} 24. Qe1 {[%clk 0:00:44.7]} 24... Nf8 {[%clk 0:00:45.3]} 25.
Qh4 {[%clk 0:00:37.2]} 25... f6 {[%clk 0:00:45.6]} 26. Kf2 {[%clk 0:00:21.3]}
26... fxg5 {[%clk 0:00:40.5]} 27. fxg5 {[%clk 0:00:19.2]} 27... Qe5 {[%clk
0:00:22.7]} 28. Nf4 {[%clk 0:00:19]} 28... Bc5 {[%clk 0:00:19.6]} 29. Qh8+
{[%clk 0:00:18.1]} 29... Kf7 {[%clk 0:00:19.5]} 30. Qh5+ {[%clk 0:00:14]} 30...
g6 {[%clk 0:00:19]} 31. Nxg6 {[%clk 0:00:11.9]} 31... Nxg6 {[%clk 0:00:16.7]}
32. Qh7+ {[%clk 0:00:11.6]} 32... Qg7 {[%clk 0:00:17]} 33. Bxc5 {[%clk
0:00:10.4]} 33... bxc5 {[%clk 0:00:15.9]} 34. Ke2 {[%clk 0:00:10.6]} 34... Qxh7
{[%clk 0:00:14.6]} 35. Rxh7+ {[%clk 0:00:09.8]} 35... Kg8 {[%clk 0:00:15.5]} 36.
Rxb7 {[%clk 0:00:09.9]} 36... Nf4+ {[%clk 0:00:16]} 37. Ke3 {[%clk 0:00:10]}
37... Rf8 {[%clk 0:00:16]} 38. bxc4 {[%clk 0:00:09.7]} 38... Rd3+ {[%clk
0:00:16]} 39. Kf2 {[%clk 0:00:10.1]} 39... Nd5+ {[%clk 0:00:15.6]} 40. Ke2
{[%clk 0:00:09.8]} 40... Rxc3 {[%clk 0:00:14.5]} 41. Rh1 {[%clk 0:00:10]} 41...
Nf4+ {[%clk 0:00:13.6]} 42. Kd2 {[%clk 0:00:10.5]} 42... Rd3+ {[%clk 0:00:13.5]}
43. Kc2 {[%clk 0:00:11]} 43... Rh3 {[%clk 0:00:12.8]} 44. Rd1 {[%clk 0:00:10.2]}
44... Rh2+ {[%clk 0:00:12.4]} 45. Kc3 {[%clk 0:00:09.9]} 45... Ne2+ {[%clk
0:00:12.5]} 46. Kd3 {[%clk 0:00:09.5]} 46... Rd8+ {[%clk 0:00:11.9]} 47. Kc2
{[%clk 0:00:07.9]} 47... Nd4+ {[%clk 0:00:12.1]} 48. Kc1 {[%clk 0:00:07.3]}
48... Rf8 {[%clk 0:00:11.8]} 0-1

[Event "*** Titled Tuesday Blitz"]
[Site "Chess.com"]
[Date "2020.04.07"]
[Round "3"]
[White "Tjktiger"]
[Black "Storne89"]
[Result "1-0"]
[WhiteElo "2853"]
[BlackElo "2611"]
[TimeControl "180+1"]
[EndTime "13:30:36 PDT"]
[Termination "Tjktiger won on time"]

1. c4 {[%clk 0:03:00.9]} 1... e5 {[%clk 0:02:59.5]} 2. Nc3 {[%clk 0:03:00.9]}
2... Nc6 {[%clk 0:02:59.2]} 3. Nf3 {[%clk 0:03:01.3]} 3... Nf6 {[%clk
0:02:57.4]} 4. e4 {[%clk 0:03:00.9]} 4... d6 {[%clk 0:02:54.6]} 5. h3 {[%clk
0:03:00.3]} 5... g6 {[%clk 0:02:54.3]} 6. d3 {[%clk 0:03:00.7]} 6... Bg7 {[%clk
0:02:54.3]} 7. g3 {[%clk 0:03:01.3]} 7... O-O {[%clk 0:02:54.1]} 8. Bg2 {[%clk
0:03:01.9]} 8... Nd7 {[%clk 0:02:53.1]} 9. Bg5 {[%clk 0:03:02.4]} 9... f6 {[%clk
0:02:50.3]} 10. Be3 {[%clk 0:03:03.3]} 10... Nc5 {[%clk 0:02:50.2]} 11. d4
{[%clk 0:03:03.6]} 11... exd4 {[%clk 0:02:41.5]} 12. Nxd4 {[%clk 0:03:04.5]}
12... Nxd4 {[%clk 0:02:37.3]} 13. Bxd4 {[%clk 0:03:05.4]} 13... a5 {[%clk
0:02:30]} 14. O-O {[%clk 0:03:04.5]} 14... c6 {[%clk 0:02:30]} 15. Re1 {[%clk
0:03:02]} 15... Be6 {[%clk 0:02:27.8]} 16. b3 {[%clk 0:02:59.7]} 16... Qc7
{[%clk 0:02:12.3]} 17. Qd2 {[%clk 0:02:50]} 17... Rad8 {[%clk 0:02:11.7]} 18.
Rad1 {[%clk 0:02:50.1]} 18... f5 {[%clk 0:01:55.9]} 19. Bxg7 {[%clk 0:02:26.9]}
19... Qxg7 {[%clk 0:01:54.9]} 20. f4 {[%clk 0:02:27.3]} 20... fxe4 {[%clk
0:01:52]} 21. Nxe4 {[%clk 0:02:28.2]} 21... Nxe4 {[%clk 0:01:51.7]} 22. Rxe4
{[%clk 0:02:29.1]} 22... Bf5 {[%clk 0:01:48.3]} 23. Rd4 {[%clk 0:02:28.2]} 23...
a4 {[%clk 0:01:39.7]} 24. g4 {[%clk 0:02:15.9]} 24... Bc8 {[%clk 0:01:34.7]} 25.
bxa4 {[%clk 0:02:03]} 25... h5 {[%clk 0:01:32.2]} 26. g5 {[%clk 0:01:43.9]}
26... Bf5 {[%clk 0:01:27.2]} 27. a5 {[%clk 0:01:31.9]} 27... Qc7 {[%clk
0:01:20.8]} 28. a6 {[%clk 0:01:01.4]} 28... bxa6 {[%clk 0:01:18]} 29. Rxd6
{[%clk 0:01:01.4]} 29... Qb6+ {[%clk 0:00:57.7]} 30. Kh2 {[%clk 0:00:51.2]}
30... Rxd6 {[%clk 0:00:38]} 31. Qxd6 {[%clk 0:00:52.1]} 31... Qf2 {[%clk
0:00:38.5]} 32. Qd2 {[%clk 0:00:36.3]} 32... Qb6 {[%clk 0:00:32.6]} 33. Qd4
{[%clk 0:00:31.7]} 33... Qa5 {[%clk 0:00:29.6]} 34. Bxc6 {[%clk 0:00:28.3]}
34... Qxa2+ {[%clk 0:00:29.5]} 35. Rd2 {[%clk 0:00:28]} 35... Qa3 {[%clk
0:00:24.3]} 36. Bg2 {[%clk 0:00:21.5]} 36... a5 {[%clk 0:00:24.3]} 37. c5 {[%clk
0:00:21.3]} 37... a4 {[%clk 0:00:23.7]} 38. c6 {[%clk 0:00:20.9]} 38... Qe7
{[%clk 0:00:18]} 39. Qxa4 {[%clk 0:00:19.2]} 39... h4 {[%clk 0:00:18.4]} 40.
Qc4+ {[%clk 0:00:18.5]} 40... Kh7 {[%clk 0:00:17.3]} 41. Qd4 {[%clk 0:00:18]}
41... Qa3 {[%clk 0:00:16.4]} 42. Qf2 {[%clk 0:00:18.1]} 42... Kg7 {[%clk
0:00:13.9]} 43. Qxh4 {[%clk 0:00:17.3]} 43... Rh8 {[%clk 0:00:11.3]} 44. Qg3
{[%clk 0:00:17.4]} 44... Qc1 {[%clk 0:00:11.3]} 45. Qe3 {[%clk 0:00:16.2]} 1-0

[Event "*** Titled Tuesday Blitz"]
[Site "Chess.com"]
[Date "2020.04.07"]
[Round "3"]
[White "chito89"]
[Black "riconaipe"]
[Result "1-0"]
[WhiteElo "2785"]
[BlackElo "2528"]
[TimeControl "180+1"]
[EndTime "13:30:36 PDT"]
[Termination "chito89 won by checkmate"]

1. d4 {[%clk 0:03:00.9]} 1... d5 {[%clk 0:02:58.1]} 2. c4 {[%clk 0:02:59.7]}
2... e6 {[%clk 0:02:58.1]} 3. Nf3 {[%clk 0:02:58.5]} 3... a6 {[%clk 0:02:58.1]}
4. Nbd2 {[%clk 0:02:55.1]} 4... Nf6 {[%clk 0:02:55.3]} 5. g3 {[%clk 0:02:54.6]}
5... Be7 {[%clk 0:02:51.1]} 6. Bg2 {[%clk 0:02:53.6]} 6... O-O {[%clk
0:02:51.6]} 7. O-O {[%clk 0:02:52.5]} 7... b6 {[%clk 0:02:52.1]} 8. cxd5 {[%clk
0:02:48.7]} 8... exd5 {[%clk 0:02:51.8]} 9. Ne5 {[%clk 0:02:49.1]} 9... Bb7
{[%clk 0:02:51.7]} 10. Ndf3 {[%clk 0:02:45.9]} 10... Ne4 {[%clk 0:02:50.4]} 11.
b3 {[%clk 0:02:30.9]} 11... f6 {[%clk 0:02:38.7]} 12. Nd3 {[%clk 0:02:30.5]}
12... Nd7 {[%clk 0:02:35.8]} 13. Nf4 {[%clk 0:02:30.2]} 13... Re8 {[%clk
0:02:27.1]} 14. Bb2 {[%clk 0:02:10.5]} 14... Bd6 {[%clk 0:02:25.7]} 15. Rc1
{[%clk 0:02:11]} 15... Bxf4 {[%clk 0:02:12.3]} 16. gxf4 {[%clk 0:02:10.4]} 16...
Rc8 {[%clk 0:02:12.9]} 17. e3 {[%clk 0:02:08.4]} 17... Qe7 {[%clk 0:02:12.4]}
18. Rc2 {[%clk 0:02:03.7]} 18... Qf7 {[%clk 0:02:12]} 19. Nd2 {[%clk 0:01:43.8]}
19... Nd6 {[%clk 0:02:11.4]} 20. Bh3 {[%clk 0:01:20.3]} 20... c5 {[%clk
0:01:58.2]} 21. Qg4 {[%clk 0:00:55.8]} 21... f5 {[%clk 0:01:47.7]} 22. Qf3
{[%clk 0:00:44.9]} 22... Ne4 {[%clk 0:01:43.8]} 23. Nxe4 {[%clk 0:00:42.7]}
23... Rxe4 {[%clk 0:01:28.8]} 24. Bg2 {[%clk 0:00:32.1]} 24... Re6 {[%clk
0:01:22.2]} 25. Rd1 {[%clk 0:00:28.5]} 25... Ba8 {[%clk 0:01:13.7]} 26. Kh1
{[%clk 0:00:27.9]} 26... Rg6 {[%clk 0:00:41.9]} 27. Rg1 {[%clk 0:00:27.1]} 27...
c4 {[%clk 0:00:40.7]} 28. Ba3 {[%clk 0:00:24.6]} 28... b5 {[%clk 0:00:32.2]} 29.
Rcc1 {[%clk 0:00:22.6]} 29... Nf6 {[%clk 0:00:30.1]} 30. Bd6 {[%clk 0:00:17.8]}
30... Ne4 {[%clk 0:00:22.7]} 31. Be5 {[%clk 0:00:18.1]} 31... h6 {[%clk
0:00:18.3]} 32. Qe2 {[%clk 0:00:16.8]} 32... Kh7 {[%clk 0:00:17.9]} 33. Bxe4
{[%clk 0:00:16.9]} 33... dxe4 {[%clk 0:00:16.6]} 34. Rxg6 {[%clk 0:00:16.8]}
34... Qxg6 {[%clk 0:00:16.4]} 35. Rg1 {[%clk 0:00:17.3]} 35... Rc6 {[%clk
0:00:08.8]} 36. Rxg6 {[%clk 0:00:16.1]} 36... Rxg6 {[%clk 0:00:09.7]} 37. d5
{[%clk 0:00:12.1]} 37... Bxd5 {[%clk 0:00:09.3]} 38. h3 {[%clk 0:00:09]} 38...
cxb3 {[%clk 0:00:09.3]} 39. axb3 {[%clk 0:00:08.3]} 39... Bxb3 {[%clk
0:00:09.8]} 40. Qh5 {[%clk 0:00:08.5]} 40... Be6 {[%clk 0:00:08.7]} 41. Qd1
{[%clk 0:00:09]} 41... Bc4 {[%clk 0:00:06.9]} 42. Qd7 {[%clk 0:00:07.7]} 42...
Be6 {[%clk 0:00:05.5]} 43. Qb7 {[%clk 0:00:06.4]} 43... h5 {[%clk 0:00:04.5]}
44. Kh2 {[%clk 0:00:06.3]} 44... h4 {[%clk 0:00:04.5]} 45. Qe7 {[%clk
0:00:06.2]} 45... a5 {[%clk 0:00:04.3]} 46. Qxh4+ {[%clk 0:00:06.5]} 46... Kg8
{[%clk 0:00:04.9]} 47. Qd8+ {[%clk 0:00:06.8]} 47... Kh7 {[%clk 0:00:05.5]} 48.
Qxa5 {[%clk 0:00:07.3]} 48... Bd7 {[%clk 0:00:04.9]} 49. Qd8 {[%clk 0:00:06.8]}
49... Be6 {[%clk 0:00:05.1]} 50. Qh4+ {[%clk 0:00:07.2]} 50... Kg8 {[%clk
0:00:05.2]} 51. Qe7 {[%clk 0:00:07.6]} 51... Kh7 {[%clk 0:00:05.5]} 52. Bxg7
{[%clk 0:00:07.4]} 52... Bc4 {[%clk 0:00:05.1]} 53. Bf6+ {[%clk 0:00:07.2]}
53... Kg8 {[%clk 0:00:05.3]} 54. Qe8+ {[%clk 0:00:06.5]} 54... Kh7 {[%clk
0:00:05.7]} 55. Qh8# {[%clk 0:00:07]} 1-0

[Event "*** Titled Tuesday Blitz"]
[Site "Chess.com"]
[Date "2020.04.07"]
[Round "3"]
[White "letantha"]
[Black "ApacheSVD"]
[Result "1-0"]
[WhiteElo "2140"]
[BlackElo "2347"]
[TimeControl "180+1"]
[EndTime "13:30:36 PDT"]
[Termination "letantha won by checkmate"]

1. e4 {[%clk 0:02:06.5]} 1... c5 {[%clk 0:02:59]} 2. c3 {[%clk 0:02:06]} 2... d5
{[%clk 0:02:58.9]} 3. exd5 {[%clk 0:02:05.9]} 3... Qxd5 {[%clk 0:02:59.8]} 4. d4
{[%clk 0:02:05.9]} 4... Nf6 {[%clk 0:02:59.6]} 5. Nf3 {[%clk 0:02:05.7]} 5... e6
{[%clk 0:03:00.1]} 6. Na3 {[%clk 0:02:02.9]} 6... Qd8 {[%clk 0:02:59.9]} 7. Nc2
{[%clk 0:01:59]} 7... Nc6 {[%clk 0:03:00.3]} 8. Be2 {[%clk 0:01:58.5]} 8... Be7
{[%clk 0:02:59.3]} 9. O-O {[%clk 0:01:58.6]} 9... O-O {[%clk 0:02:59.9]} 10. Be3
{[%clk 0:01:58.2]} 10... cxd4 {[%clk 0:02:57.6]} 11. Ncxd4 {[%clk 0:01:59.1]}
11... Nxd4 {[%clk 0:02:57.2]} 12. Bxd4 {[%clk 0:01:59.6]} 12... b6 {[%clk
0:02:56.3]} 13. Ne5 {[%clk 0:01:58.8]} 13... Bb7 {[%clk 0:02:55.9]} 14. Bf3
{[%clk 0:01:59.3]} 14... Bxf3 {[%clk 0:02:50.5]} 15. Qxf3 {[%clk 0:02:00.2]}
15... Qc7 {[%clk 0:02:51]} 16. Rfe1 {[%clk 0:01:57.7]} 16... Rad8 {[%clk
0:02:44.7]} 17. g3 {[%clk 0:01:54.8]} 17... Bc5 {[%clk 0:02:43.4]} 18. Bxc5
{[%clk 0:01:40.4]} 18... Qxc5 {[%clk 0:02:43]} 19. Re2 {[%clk 0:01:40.9]} 19...
Rd5 {[%clk 0:02:40.9]} 20. Rae1 {[%clk 0:01:40.7]} 20... Rfd8 {[%clk 0:02:35.4]}
21. Kg2 {[%clk 0:01:24.2]} 21... a5 {[%clk 0:02:26.5]} 22. h3 {[%clk 0:01:13.6]}
22... a4 {[%clk 0:02:26]} 23. a3 {[%clk 0:01:08.9]} 23... h6 {[%clk 0:02:14.9]}
24. g4 {[%clk 0:01:06.6]} 24... Rd2 {[%clk 0:02:11.4]} 25. Qb7 {[%clk
0:01:02.5]} 25... Qd5+ {[%clk 0:01:36.9]} 26. Qxd5 {[%clk 0:01:01.9]} 26...
R8xd5 {[%clk 0:01:33.2]} 27. Nc4 {[%clk 0:00:51.2]} 27... Rxe2 {[%clk
0:01:28.7]} 28. Rxe2 {[%clk 0:00:52.1]} 28... b5 {[%clk 0:01:27.1]} 29. Ne5
{[%clk 0:00:50.8]} 29... Rd1 {[%clk 0:01:19]} 30. Nf3 {[%clk 0:00:17.2]} 30...
Nd5 {[%clk 0:01:19.1]} 31. Rd2 {[%clk 0:00:17.4]} 31... Rxd2 {[%clk 0:01:17.1]}
32. Nxd2 {[%clk 0:00:18.3]} 32... Nf4+ {[%clk 0:01:17.7]} 33. Kg3 {[%clk
0:00:17.9]} 33... Nd3 {[%clk 0:01:18.6]} 34. b3 {[%clk 0:00:17.1]} 34... axb3
{[%clk 0:00:39.3]} 35. Nxb3 {[%clk 0:00:18]} 35... Ne5 {[%clk 0:00:37.9]} 36.
Nd4 {[%clk 0:00:17.5]} 36... Nc4 {[%clk 0:00:33.8]} 37. Nxb5 {[%clk 0:00:17.7]}
37... f6 {[%clk 0:00:33.5]} 38. Kf4 {[%clk 0:00:15.4]} 38... e5+ {[%clk
0:00:32]} 39. Ke4 {[%clk 0:00:15.8]} 39... Kf7 {[%clk 0:00:30.7]} 40. Kd5 {[%clk
0:00:15.7]} 40... Na5 {[%clk 0:00:29.2]} 41. Kc5 {[%clk 0:00:13.1]} 41... g6
{[%clk 0:00:27.9]} 42. Kb4 {[%clk 0:00:11.2]} 42... Nc6+ {[%clk 0:00:26.1]} 43.
Kc5 {[%clk 0:00:11]} 43... Na5 {[%clk 0:00:24.3]} 44. Nd6+ {[%clk 0:00:04.8]}
44... Ke6 {[%clk 0:00:24.3]} 45. Nc4 {[%clk 0:00:05.2]} 45... Nb7+ {[%clk
0:00:24.7]} 46. Kb6 {[%clk 0:00:05.2]} 46... Nd8 {[%clk 0:00:23.4]} 47. a4
{[%clk 0:00:05.2]} 47... f5 {[%clk 0:00:24]} 48. a5 {[%clk 0:00:05.8]} 48...
fxg4 {[%clk 0:00:23.8]} 49. hxg4 {[%clk 0:00:06.7]} 49... h5 {[%clk 0:00:24.3]}
50. gxh5 {[%clk 0:00:07.6]} 50... gxh5 {[%clk 0:00:24.2]} 51. a6 {[%clk
0:00:07.6]} 51... Kd5 {[%clk 0:00:15.2]} 52. a7 {[%clk 0:00:06.8]} 52... Ne6
{[%clk 0:00:14.6]} 53. Ne3+ {[%clk 0:00:04.5]} 53... Ke4 {[%clk 0:00:14]} 54.
a8=Q+ {[%clk 0:00:05.4]} 54... Kd3 {[%clk 0:00:14.4]} 55. Qd5+ {[%clk
0:00:04.8]} 55... Nd4 {[%clk 0:00:14.1]} 56. cxd4 {[%clk 0:00:04.4]} 56... exd4
{[%clk 0:00:15]} 57. Qxh5 {[%clk 0:00:04.4]} 57... dxe3 {[%clk 0:00:14]} 58.
fxe3 {[%clk 0:00:05.3]} 58... Kxe3 {[%clk 0:00:14.9]} 59. Qd5 {[%clk 0:00:05.6]}
59... Kf2 {[%clk 0:00:15.8]} 60. Kc5 {[%clk 0:00:06.1]} 60... Kg1 {[%clk
0:00:16.7]} 61. Qd2 {[%clk 0:00:06.1]} 61... Kh1 {[%clk 0:00:16.9]} 62. Kd4
{[%clk 0:00:07]} 62... Kg1 {[%clk 0:00:17.8]} 63. Ke3 {[%clk 0:00:07.7]} 63...
Kh1 {[%clk 0:00:18.7]} 64. Kf3 {[%clk 0:00:08.6]} 64... Kg1 {[%clk 0:00:19.6]}
65. Qg2# {[%clk 0:00:08.2]} 1-0

[Event "*** Titled Tuesday Blitz"]
[Site "Chess.com"]
[Date "2020.04.07"]
[Round "3"]
[White "Dare-Dare"]
[Black "marianokar"]
[Result "0-1"]
[WhiteElo "2133"]
[BlackElo "2366"]
[TimeControl "180+1"]
[EndTime "13:30:37 PDT"]
[Termination "marianokar won on time"]

1. Nf3 {[%clk 0:03:00.9]} 1... Nf6 {[%clk 0:02:58]} 2. c4 {[%clk 0:03:01.8]}
2... e6 {[%clk 0:02:57.6]} 3. Nc3 {[%clk 0:03:02.5]} 3... d5 {[%clk 0:02:57.9]}
4. e3 {[%clk 0:03:02.9]} 4... Be7 {[%clk 0:02:55.8]} 5. b3 {[%clk 0:03:02.7]}
5... O-O {[%clk 0:02:56.1]} 6. Bb2 {[%clk 0:03:03]} 6... c5 {[%clk 0:02:56.7]}
7. cxd5 {[%clk 0:03:02.9]} 7... exd5 {[%clk 0:02:56]} 8. d4 {[%clk 0:03:03.2]}
8... Nc6 {[%clk 0:02:53.4]} 9. Be2 {[%clk 0:03:03.3]} 9... a6 {[%clk 0:02:48.4]}
10. O-O {[%clk 0:03:02.3]} 10... Re8 {[%clk 0:02:38.9]} 11. Rc1 {[%clk
0:03:01.9]} 11... cxd4 {[%clk 0:02:37]} 12. Nxd4 {[%clk 0:03:02.8]} 12... Bd6
{[%clk 0:02:37.4]} 13. Na4 {[%clk 0:02:57.6]} 13... Ne5 {[%clk 0:02:31.9]} 14.
h3 {[%clk 0:02:48.4]} 14... b5 {[%clk 0:02:26]} 15. Nc5 {[%clk 0:02:47.7]} 15...
Qe7 {[%clk 0:01:59.3]} 16. Nd3 {[%clk 0:02:44]} 16... Nxd3 {[%clk 0:01:44.1]}
17. Nc6 {[%clk 0:02:23]} 17... Qe6 {[%clk 0:01:17.4]} 18. Bxd3 {[%clk
0:02:20.7]} 18... Ne4 {[%clk 0:01:13.5]} 19. Qe2 {[%clk 0:02:20.2]} 19... Qg6
{[%clk 0:01:11.2]} 20. Kh1 {[%clk 0:02:04.8]} 20... Qh6 {[%clk 0:01:00.5]} 21.
Kg1 {[%clk 0:01:29.1]} 21... Bxh3 {[%clk 0:00:52.1]} 22. gxh3 {[%clk 0:01:24.1]}
22... Qxh3 {[%clk 0:00:51.9]} 23. f3 {[%clk 0:01:23.2]} 23... Re6 {[%clk
0:00:40.1]} 24. Rf2 {[%clk 0:00:45.2]} 24... Ng3 {[%clk 0:00:19.4]} 25. Rg2
{[%clk 0:00:28.6]} 25... Nxe2+ {[%clk 0:00:13.3]} 26. Bxe2 {[%clk 0:00:29.5]}
26... Rxe3 {[%clk 0:00:11.8]} 27. Rxg7+ {[%clk 0:00:26.3]} 27... Kf8 {[%clk
0:00:12.3]} 28. Rg2 {[%clk 0:00:26.3]} 28... Rae8 {[%clk 0:00:11.1]} 29. Bg7+
{[%clk 0:00:23.2]} 29... Kg8 {[%clk 0:00:09.6]} 30. Bf6+ {[%clk 0:00:10.6]}
30... Qxg2+ {[%clk 0:00:09.7]} 31. Kxg2 {[%clk 0:00:11.5]} 31... Rxe2+ {[%clk
0:00:10.4]} 32. Kf1 {[%clk 0:00:12.4]} 32... R2e6 {[%clk 0:00:10.4]} 33. Bd4
{[%clk 0:00:12.1]} 33... Bf4 {[%clk 0:00:09.7]} 34. Rc2 {[%clk 0:00:10.6]} 34...
f6 {[%clk 0:00:10.6]} 35. Rg2+ {[%clk 0:00:10.3]} 35... Kf7 {[%clk 0:00:11.2]}
36. Rc2 {[%clk 0:00:10.2]} 36... Kg6 {[%clk 0:00:11.2]} 37. Kf2 {[%clk
0:00:11.1]} 37... Kf5 {[%clk 0:00:11.9]} 38. Bb2 {[%clk 0:00:10.6]} 38... Be5
{[%clk 0:00:12]} 39. Nd4+ {[%clk 0:00:11.5]} 39... Bxd4+ {[%clk 0:00:10.7]} 40.
Bxd4 {[%clk 0:00:12.4]} 40... h5 {[%clk 0:00:11.4]} 41. Kg3 {[%clk 0:00:12.1]}
41... Rg8+ {[%clk 0:00:10.5]} 42. Kh4 {[%clk 0:00:12.3]} 42... Re1 {[%clk
0:00:10.7]} 43. Rh2 {[%clk 0:00:11.8]} 43... Rf1 {[%clk 0:00:10.7]} 44. Rh3
{[%clk 0:00:10.1]} 44... Rd1 {[%clk 0:00:10.4]} 45. Bc5 {[%clk 0:00:08.4]} 45...
d4 {[%clk 0:00:10.6]} 46. Bb4 {[%clk 0:00:05.3]} 46... d3 {[%clk 0:00:10.7]} 47.
Rh2 {[%clk 0:00:03.7]} 47... Kf4 {[%clk 0:00:10.5]} 0-1